fUSD/lending_fUSD_20260417
["ID","MTS","AMOUNT","RATE_DAILY","PERIOD"]
[420632191,1776379846224,-160.0,9.728e-05,2]
[420632193,1776379846234,-1000.0,9.757e-05,2]
[420632195,1776379846244,-420.0,9.785e-05,2]
[420632197,1776379846254,-1680.0,9.785e-05,2]
[420632199,1776379846265,-255.0,9.786e-05,2]
[420632201,1776379846275,-166.68,9.848e-05,2]
[420632203,1776379846285,-3528.0,9.985e-05,2]
[420632205,1776379846294,-1348.0,9.985e-05,2]
[420632207,1776379846304,-622.0,9.985e-05,2]
[420632209,1776379846313,-150.0,9.985e-05,2]
[420632211,1776379846323,-416.0,9.985e-05,2]
[420632213,1776379846333,-3777.0,9.985e-05,2]
[420632215,1776379846343,-355.16115794,0.0001,2]
[420632217,1776379846353,-308.07275232,0.0001,2]
[420632220,1776379846363,-198.64440139,0.0001,2]
[420632222,1776379846373,-150.0,0.00010026,2]
[420632224,1776379846383,-150.0,0.00010026,2]
[420632226,1776379846393,-252.68084739,0.00010026,2]
[420632228,1776379846402,-150.0,0.00010026,2]
[420632230,1776379846411,-150.0,0.00010026,2]
[420632232,1776379846421,-150.0,0.00010026,2]
[420632234,1776379846431,-150.0,0.00010026,2]
[420632236,1776379846441,-150.0,0.00010026,2]
[420632238,1776379846451,-166.10582343,0.00010026,2]
[420632240,1776379846460,-187.38510964,0.00010026,2]
[420632242,1776379846469,-150.0,0.00010026,2]
[420632244,1776379846479,-150.0,0.00010026,2]
[420632246,1776379846489,-150.0,0.00010026,2]
[420632248,1776379846499,-500.0,0.00010026,2]
[420632250,1776379846509,-500.0,0.00010026,2]
[420632252,1776379846519,-500.0,0.00010026,2]
[420632254,1776379846528,-500.0,0.00010026,2]
[420632256,1776379846538,-500.0,0.00010026,2]
[420632258,1776379846548,-500.0,0.00010026,2]
[420632260,1776379846558,-500.0,0.00010026,2]
[420632262,1776379846568,-500.0,0.00010026,2]
[420632264,1776379846579,-500.0,0.00010026,2]
[420632266,1776379846590,-500.0,0.00010026,2]
[420632268,1776379846600,-500.0,0.00010026,2]
[420632271,1776379846609,-150.0,0.00010026,2]
[420632273,1776379846619,-150.0,0.00010026,2]
[420632275,1776379846630,-150.0,0.00010026,2]
[420632277,1776379846640,-197.49970056,0.00010026,2]
[420632279,1776379846650,-155.0,0.0001011,5]
[420632281,1776379846659,-200.0,0.0001019,2]
[420632283,1776379846669,-1328.27659266,0.0001019,2]
[420632285,1776379846680,-181.08010149,0.0001019,2]
[420632287,1776379846690,-209.04964,0.000102,2]
[420632289,1776379846699,-209.04964,0.000102,2]
[420632291,1776379846709,-574.43370456,0.000102,2]
[420632293,1776379846719,-209.04964,0.0001022,2]
[420632295,1776379846728,-269.45,0.00010247,2]
[420632297,1776379846738,-209.04964,0.0001025,2]
[420632299,1776379846748,-151.0,0.00010297,2]
[420632301,1776379846758,-151.0,0.00010297,2]
[420632303,1776379846767,-31665.5336904,0.00010298,2]
[420632305,1776379846777,-1938.8783573,0.00010298,2]
[420632307,1776379846787,-26050.8982973,0.00010298,2]
[420632309,1776379846797,-190.17295582,0.00010299,2]
[420632311,1776379846806,-340.38377359,0.00010299,2]
[420632314,1776379846816,-17936.17807883,0.000103,2]
[420632317,1776379846842,-580.13076346,0.000103,2]
[420632553,1776380126598,150.0,0.00013415,30]
[420632554,1776380126944,150.0,0.00014852,30]
[420632555,1776380127324,150.0,0.00016289,30]
[420632557,1776380214051,150.0,0.00013458,30]
[420632558,1776380214417,150.0,0.000149,30]
[420632559,1776380214758,150.0,0.00016342,30]
[420632560,1776380297297,150.0,0.00013249,30]
[420632561,1776380297645,150.0,0.00014668,30]
[420632562,1776380298011,150.0,0.00016088,30]
[420632563,1776380378416,420.0,0.000165,30]
[420632564,1776380382557,150.0,7.833e-05,2]
[420632566,1776380460857,150.0,0.00014187,30]
[420632567,1776380461204,150.0,0.00015707,30]
[420632571,1776380717589,150.0,7.915e-05,2]
[420632572,1776380718105,150.0,7.915e-05,2]
[420632573,1776380719870,150.0,7.915e-05,2]
[420632574,1776380724343,150.0,7.915e-05,2]
[420632575,1776380724411,150.0,7.915e-05,2]
[420632576,1776380728931,150.0,7.915e-05,2]
[420632577,1776380734767,150.0,7.915e-05,2]
[420632578,1776380735856,150.0,7.915e-05,2]
[420632579,1776380848213,168.46,6.491e-05,2]
[420632580,1776381015932,200.0,8.142e-05,2]
[420632581,1776381028671,8513.88,8.142e-05,2]
[420632582,1776381031834,-212.57,8.399e-05,2]
[420632583,1776381031844,-259.0,8.399e-05,2]
[420632584,1776381031853,-198.02,8.477e-05,2]
[420632585,1776381031863,-300.0,8.697e-05,2]
[420632586,1776381031872,-1200.0,8.697e-05,2]
[420632587,1776381031882,-605.47045395,8.698e-05,2]
[420632588,1776381031894,-300.0,8.698e-05,2]
[420632589,1776381031905,-626.10704283,8.698e-05,2]
[420632590,1776381031940,-938.61110322,8.698e-05,2]
[420632591,1776381031950,-8584.1637,8.698e-05,2]
[420632592,1776381031959,-2500.0,8.698e-05,2]
[420632593,1776381031968,-537345.9768,8.698e-05,2]
[420632594,1776381031979,-500.57038075,8.773e-05,2]
[420632595,1776381031988,-500.69201092,8.773e-05,2]
[420632596,1776381031998,-500.0,8.773e-05,2]
[420632597,1776381032007,-500.0,8.773e-05,2]
[420632598,1776381032017,-500.0,8.773e-05,2]
[420632599,1776381032027,-1000.0,8.794e-05,2]
[420632600,1776381032036,-150.0,8.795e-05,2]
[420632601,1776381032046,-151.0,8.795e-05,2]
[420632602,1776381032056,-150.0,8.796e-05,2]
[420632603,1776381032068,-500.0,8.797e-05,2]
[420632604,1776381032077,-500.0,8.797e-05,2]
[420632605,1776381032089,-500.0,8.797e-05,2]
[420632606,1776381032099,-500.0,8.797e-05,2]
[420632608,1776381032108,-500.0,8.797e-05,2]
[420632610,1776381032117,-500.0,8.797e-05,2]
[420632611,1776381032127,-500.0,8.797e-05,2]
[420632612,1776381032136,-500.0,8.797e-05,2]
[420632613,1776381032146,-500.0,8.797e-05,2]
[420632614,1776381032156,-500.0,8.797e-05,2]
[420632616,1776381032166,-500.0,8.797e-05,2]
[420632618,1776381032175,-500.0,8.797e-05,2]
[420632619,1776381032186,-500.0,8.797e-05,2]
[420632620,1776381032196,-500.0,8.797e-05,2]
[420632621,1776381032206,-500.0,8.797e-05,2]
[420632623,1776381032216,-500.0,8.797e-05,2]
[420632625,1776381032226,-500.0,8.797e-05,2]
[420632626,1776381032236,-500.0,8.797e-05,2]
[420632627,1776381032246,-500.0,8.797e-05,2]
[420632628,1776381032255,-500.0,8.797e-05,2]
[420632629,1776381032265,-500.0,8.797e-05,2]
[420632631,1776381032275,-500.0,8.797e-05,2]
[420632633,1776381032285,-560.86499054,8.797e-05,2]
[420632635,1776381032294,-500.0,8.797e-05,2]
[420632637,1776381032304,-500.0,8.797e-05,2]
[420632639,1776381032313,-500.0,8.797e-05,2]
[420632640,1776381032323,-500.0,8.797e-05,2]
[420632641,1776381032333,-500.0,8.797e-05,2]
[420632642,1776381032342,-500.0,8.797e-05,2]
[420632643,1776381032353,-500.0,8.797e-05,2]
[420632644,1776381032363,-500.0,8.797e-05,2]
[420632645,1776381032373,-500.0,8.797e-05,2]
[420632646,1776381032382,-256.08649905,8.797e-05,2]
[420632647,1776381032392,-500.0,8.797e-05,2]
[420632648,1776381032401,-500.0,8.797e-05,2]
[420632649,1776381032412,-500.0,8.797e-05,2]
[420632650,1776381032422,-500.0,8.797e-05,2]
[420632651,1776381032431,-500.0,8.797e-05,2]
[420632652,1776381032440,-500.0,8.797e-05,2]
[420632653,1776381032450,-500.0,8.797e-05,2]
[420632654,1776381032460,-500.0,8.797e-05,2]
[420632655,1776381032469,-500.0,8.797e-05,2]
[420632656,1776381032479,-500.0,8.797e-05,2]
[420632657,1776381032488,-485.58434286,8.797e-05,2]
[420632658,1776381032498,-500.0,8.797e-05,2]
[420632659,1776381032508,-500.0,8.797e-05,2]
[420632660,1776381032517,-500.0,8.797e-05,2]
[420632661,1776381032527,-500.0,8.797e-05,2]
[420632662,1776381032536,-518.88343016,8.797e-05,2]
[420632663,1776381032546,-518.88343016,8.797e-05,2]
[420632664,1776381032555,-518.88343016,8.797e-05,2]
[420632665,1776381032564,-518.88343016,8.797e-05,2]
[420632666,1776381032574,-518.88343016,8.797e-05,2]
[420632667,1776381032584,-518.88343016,8.797e-05,2]
[420632668,1776381032594,-155.0,8.797e-05,2]
[420632669,1776381032603,-6431.2659,8.798e-05,2]
[420632670,1776381032612,-65003.972,8.798e-05,2]
[420632671,1776381032622,-17546.45750684,8.798e-05,2]
[420632672,1776381032635,-5532.58034638,8.798e-05,2]
[420632673,1776381032646,-55004.25214678,8.798e-05,2]
[420632674,1776381032656,-299.99,8.798e-05,2]
[420632675,1776381032665,-200.0,8.798e-05,2]
[420632676,1776381032674,-200.0,8.798e-05,2]
[420632677,1776381032684,-200.0,8.798e-05,2]
[420632678,1776381032693,-200.0,8.798e-05,2]
[420632679,1776381032702,-200.0,8.798e-05,2]
[420632680,1776381032712,-200.0,8.798e-05,2]
[420632681,1776381032722,-200.0,8.798e-05,2]
[420632682,1776381032731,-200.0,8.798e-05,2]
[420632683,1776381032740,-200.0,8.798e-05,2]
[420632684,1776381032750,-200.0,8.798e-05,2]
[420632685,1776381032759,-200.0,8.798e-05,2]
[420632686,1776381032769,-200.0,8.798e-05,2]
[420632687,1776381032778,-200.0,8.798e-05,2]
[420632688,1776381032788,-200.0,8.798e-05,2]
[420632689,1776381032799,-200.0,8.798e-05,2]
[420632690,1776381032809,-200.0,8.798e-05,2]
[420632691,1776381032819,-200.0,8.798e-05,2]
[420632692,1776381032829,-200.0,8.798e-05,2]
[420632693,1776381032839,-200.0,8.798e-05,2]
[420632694,1776381032848,-200.0,8.798e-05,2]
[420632695,1776381032858,-200.0,8.798e-05,2]
[420632696,1776381032868,-200.0,8.798e-05,2]
[420632697,1776381032878,-200.0,8.798e-05,2]
[420632698,1776381032887,-200.0,8.798e-05,2]
[420632699,1776381032898,-200.0,8.798e-05,2]
[420632700,1776381032908,-200.0,8.798e-05,2]
[420632701,1776381032919,-200.0,8.798e-05,2]
[420632702,1776381032929,-200.0,8.798e-05,2]
[420632703,1776381032939,-200.0,8.798e-05,2]
[420632704,1776381032949,-200.0,8.798e-05,2]
[420632705,1776381032958,-200.0,8.798e-05,2]
[420632706,1776381032967,-200.0,8.798e-05,2]
[420632707,1776381032977,-200.0,8.798e-05,2]
[420632708,1776381032988,-200.0,8.798e-05,2]
[420632709,1776381032999,-230.545706,8.798e-05,2]
[420632710,1776381033010,-200.0,8.8e-05,3]
[420632711,1776381033019,-3003.88231946,8.803e-05,2]
[420632712,1776381034732,-7114.25768054,8.803e-05,2]
[420632713,1776381034743,-150.0,8.833e-05,2]
[420632714,1776381034752,-56956.84052211,8.868e-05,2]
[420632715,1776381034764,-305.71260636,8.868e-05,2]
[420632716,1776381034775,-322.59321388,8.868e-05,2]
[420632717,1776381034799,-500.91157275,8.868e-05,2]
[420632718,1776381034810,-12880.97863727,8.868e-05,2]
[420632719,1776381034948,-3636.70979748,8.868e-05,2]
[420632720,1776381034960,-462.11065713,8.868e-05,2]
[420632728,1776381038401,-207.9771928,8.697e-05,2]
[420632729,1776381038412,-276.4733623,8.697e-05,2]
[420632730,1776381038422,-189.10443889,8.697e-05,2]
[420632731,1776381038431,-230.38218943,8.697e-05,2]
[420632732,1776381038451,-269.61781057,8.697e-05,2]
[420632733,1776381038461,-500.0,8.697e-05,2]
[420632734,1776381038472,-174.34086441,8.697e-05,2]
[420632735,1776381038505,-325.65913559,8.697e-05,2]
[420632736,1776381038516,-587.52566464,8.697e-05,2]
[420632738,1776381038526,-420.8826304,8.697e-05,2]
[420632740,1776381038535,-500.0,8.697e-05,2]
[420632742,1776381038544,-61864.81461926,8.868e-05,2]
[420632745,1776381038556,-42033.93229744,8.868e-05,2]
[420632747,1776381038567,-654.70355278,8.868e-05,2]
[420632749,1776381038579,-30311.55516234,8.868e-05,2]
[420632751,1776381038590,-1829.48085355,8.868e-05,2]
[420632754,1776381038605,-3530.96223651,8.868e-05,2]
[420632757,1776381038624,-8589.5634623,8.868e-05,2]
[420632759,1776381038633,-397.25763086,8.898e-05,2]
[420632761,1776381038642,-1976.39652943,8.898e-05,2]
[420632763,1776381038652,-4198.24685605,8.898e-05,2]
[420632765,1776381038662,-9999.99,8.898e-05,2]
[420632767,1776381038671,-22067.74,8.898e-05,2]
[420632769,1776381038681,-972.4,8.898e-05,2]
[420632771,1776381038691,-400.0,8.9e-05,3]
[420632773,1776381038700,-161.96,8.94e-05,2]
[420632775,1776381038709,-530.0,8.948e-05,2]
[420632778,1776381038719,-238.0,8.948e-05,2]
[420632780,1776381038729,-500.0,8.955e-05,2]
[420632782,1776381038738,-700.0,9e-05,3]
[420632784,1776381038746,-1608.12,9.334e-05,2]
[420632786,1776381038756,-1680.0,9.566e-05,2]
[420632788,1776381038766,-3197.6358894,9.61e-05,2]
[420632790,1776381038776,-7617.55,9.67e-05,2]
[420632791,1776381038786,-9999.99,9.67e-05,2]
[420632793,1776381038796,-255.0,9.675e-05,2]
[420632795,1776381038807,-160.0,9.696e-05,2]
[420632797,1776381038817,-1698.71945515,9.718e-05,2]
[420632799,1776381038826,-578.20924308,9.726e-05,2]
[420632801,1776381038836,-1280.88388878,9.726e-05,2]
[420632802,1776381038847,-646.65982734,9.726e-05,2]
[420632803,1776381038857,-200.0,9.726e-05,2]
[420632804,1776381038869,-500.0,9.726e-05,2]
[420632805,1776381038879,-215.09535392,9.726e-05,2]
[420632806,1776381038889,-209.40437684,9.726e-05,2]
[420632807,1776381038900,-500.0,9.726e-05,2]
[420632808,1776381038910,-500.0,9.726e-05,2]
[420632809,1776381038921,-500.0,9.726e-05,2]
[420632810,1776381038932,-500.0,9.726e-05,2]
[420632811,1776381038941,-500.0,9.726e-05,2]
[420632812,1776381038951,-500.0,9.726e-05,2]
[420632813,1776381038960,-151.0,9.726e-05,2]
[420632814,1776381038969,-500.0,9.726e-05,2]
[420632815,1776381038979,-500.0,9.726e-05,2]
[420632816,1776381038989,-500.0,9.726e-05,2]
[420632817,1776381038999,-500.0,9.726e-05,2]
[420632818,1776381039010,-500.0,9.726e-05,2]
[420632819,1776381039021,-200.0,9.726e-05,2]
[420632820,1776381039031,-174.61919141,9.726e-05,2]
[420632821,1776381039041,-743.50770149,9.726e-05,2]
[420632822,1776381039051,-211.40802048,9.726e-05,2]
[420632823,1776381039060,-204.29621495,9.726e-05,2]
[420632824,1776381039072,-14.93390229,9.726e-05,2]
[420632825,1776381039081,-227.34163157,9.726e-05,2]
[420632826,1776381039091,-235.75327194,9.726e-05,2]
[420632827,1776381039100,-244.476143,9.726e-05,2]
[420632828,1776381039109,-253.52176029,9.726e-05,2]
[420632829,1776381039118,-262.90206542,9.726e-05,2]
[420632830,1776381039127,-272.62944185,9.726e-05,2]
[420632831,1776381039136,-221.93902065,9.726e-05,2]
[420632832,1776381039146,-300.23240325,9.726e-05,2]
[420632833,1776381039156,-570.10184799,9.746e-05,2]
[420632834,1776381039176,-308.5174995,9.746e-05,2]
[420632838,1776381040128,-350.33533698,9.746e-05,2]
[420632839,1776381040184,-1902.07,9.746e-05,2]
[420632840,1776381040451,-2895.97531553,9.746e-05,2]
[420632841,1776381040461,-2473.0,9.746e-05,2]
[420632842,1776381040471,-151.0,9.758e-05,2]
[420632843,1776381040481,-151.0,9.758e-05,2]
[420632844,1776381040491,-416.0,9.769e-05,2]
[420632845,1776381040502,-500.0,9.781e-05,2]
[420632846,1776381040511,-151.0,9.781e-05,2]
[420632847,1776381040521,-150.0,9.833e-05,2]
[420632848,1776381040531,-500.0,9.836e-05,2]
[420632849,1776381040542,-151.0,9.836e-05,2]
[420632850,1776381040551,-500.0,9.891e-05,2]
[420632851,1776381040562,-151.0,9.891e-05,2]
[420632852,1776381040571,-500.0,9.946e-05,2]
[420632853,1776381040582,-151.0,9.946e-05,2]
[420632854,1776381040591,-500.0,9.952e-05,5]
[420632855,1776381040601,-500.0,9.952e-05,5]
[420632856,1776381040611,-500.0,9.952e-05,5]
[420632857,1776381040621,-500.0,9.952e-05,5]
[420632858,1776381040631,-389.77752842,9.952e-05,5]
[420632859,1776381040640,-500.0,9.952e-05,5]
[420632860,1776381040650,-500.0,9.952e-05,5]
[420632861,1776381040660,-500.0,9.952e-05,5]
[420632862,1776381040669,-331.72020812,9.952e-05,5]
[420632863,1776381040679,-150.0,9.952e-05,5]
[420632864,1776381040689,-254.86309859,9.952e-05,5]
[420632865,1776381040698,-500.0,9.952e-05,5]
[420632866,1776381040708,-500.0,9.952e-05,5]
[420632867,1776381040718,-500.0,9.952e-05,5]
[420632868,1776381040727,-500.0,9.952e-05,5]
[420632869,1776381040737,-500.0,9.952e-05,5]
[420632870,1776381040751,-500.0,9.952e-05,5]
[420632871,1776381040761,-500.0,9.952e-05,5]
[420632872,1776381040770,-500.0,9.952e-05,5]
[420632873,1776381040780,-504.95063802,9.952e-05,5]
[420632875,1776381040791,-150.0,9.952e-05,2]
[420632876,1776381040803,-150.0,9.952e-05,5]
[420632877,1776381040813,-150.0,9.952e-05,5]
[420632878,1776381040823,-156.37567058,9.952e-05,5]
[420632880,1776381040832,-500.0,9.952e-05,5]
[420632881,1776381040842,-500.0,9.952e-05,5]
[420632882,1776381040852,-500.0,9.952e-05,5]
[420632883,1776381040862,-350.0,9.952e-05,5]
[420632884,1776381040872,-150.0,9.952e-05,5]
[420632885,1776381040881,-150.0,9.952e-05,5]
[420632886,1776381040892,-150.0,9.952e-05,5]
[420632887,1776381040901,-500.0,9.952e-05,5]
[420632888,1776381040911,-500.0,9.952e-05,5]
[420632889,1776381040921,-250.0,9.952e-05,5]
[420632890,1776381040931,-150.0,9.952e-05,5]
[420632891,1776381040940,-150.0,9.952e-05,5]
[420632892,1776381040950,-150.0,9.952e-05,5]
[420632893,1776381040959,-150.0,9.952e-05,5]
[420632895,1776381040968,-150.0,9.952e-05,5]
[420632898,1776381040982,-1000.0,9.984e-05,2]
[420632899,1776381040992,-150.0,9.985e-05,2]
[420632900,1776381041003,-150.0,9.985e-05,2]
[420632901,1776381041013,-150.0,9.985e-05,2]
[420632902,1776381041022,-1047.0,9.985e-05,2]
[420632903,1776381041032,-622.0,9.985e-05,2]
[420632904,1776381041042,-1328.92032712,9.985e-05,2]
[420632905,1776381041056,-19.07967288,9.985e-05,2]
[420632906,1776381041066,-786.01521884,9.985e-05,2]
[420632907,1776381041079,-430.4257349,9.985e-05,2]
[420632908,1776381041096,-2311.55904626,9.985e-05,2]
[420632909,1776381041107,-303.22608938,0.0001,2]
[420632910,1776381041117,-594.56204262,0.0001,2]
[420632911,1776381041127,-612.96155687,0.0001,2]
[420632912,1776381041137,-544.98690123,0.0001,2]
[420632913,1776381041149,-819.67386411,0.0001,2]
[420632914,1776381041239,-21.37272992,0.0001,2]
[420632915,1776381041249,-498.1884064,0.0001,2]
[420632916,1776381041261,-892.18335078,0.0001,2]
[420632917,1776381041274,-821.32816921,0.0001,2]
[420632918,1776381041284,-1836.58496927,0.0001,2]
[420632919,1776381041294,-942.08686152,0.0001,2]
[420632920,1776381041324,-1114.43492409,0.0001,2]
[420632921,1776381041334,-356.0177407,0.0001,2]
[420632922,1776381041344,-151.0,0.0001,2]
[420632923,1776381041354,-151.0,0.0001,2]
[420632924,1776381041364,-151.0,0.0001,2]
[420632925,1776381041377,-151.0,0.0001,2]
[420632926,1776381041387,-151.0,0.0001,2]
[420632927,1776381041398,-151.0,0.0001,2]
[420632928,1776381041409,-213.18541411,0.0001,2]
[420632929,1776381041419,-200.0,0.0001,2]
[420632930,1776381041428,-500.0,0.0001,2]
[420632931,1776381041439,-500.0,0.0001,2]
[420632932,1776381041449,-500.0,0.0001,2]
[420632933,1776381041459,-500.0,0.0001,2]
[420632934,1776381041469,-500.0,0.0001,2]
[420632935,1776381041479,-900.0,0.0001,3]
[420632936,1776381041490,-443.49784678,0.0001,2]
[420632954,1776381042994,-518.88343016,8.697e-05,2]
[420632955,1776381043005,-3264.28292789,9.769e-05,2]
[420632956,1776381043049,-512.71707211,9.769e-05,2]
[420632957,1776381043059,-3338.50215322,0.0001,2]
[420632958,1776381043068,-198.64440139,0.0001,2]
[420632959,1776381043078,-500.0,0.00010001,2]
[420632960,1776381043088,-151.0,0.00010001,2]
[420632961,1776381043098,-500.0,0.00010056,2]
[420632962,1776381043108,-151.0,0.00010056,2]
[420632963,1776381043118,-150.0,0.000101,2]
[420632964,1776381043129,-500.0,0.00010111,2]
[420632965,1776381043141,-151.0,0.00010111,2]
[420632966,1776381043151,-500.0,0.00010166,2]
[420632967,1776381043161,-151.0,0.00010166,2]
[420632968,1776381043172,-1077.581,0.00010199,2]
[420632969,1776381043182,-167.15914597,0.00010199,2]
[420632970,1776381043194,-2000.0,0.000102,2]
[420632971,1776381043204,-1675.04046195,0.000102,2]
[420632972,1776381043216,-324.95953805,0.000102,2]
[420632973,1776381043227,-519.43576112,0.000102,2]
[420632974,1776381043237,-339.04251698,0.000102,2]
[420632975,1776381043247,-500.0,0.00010221,2]
[420632976,1776381043258,-151.0,0.00010221,2]
[420632977,1776381043268,-200.0,0.00010225,2]
[420632978,1776381043278,-200.0,0.00010225,2]
[420632979,1776381043287,-200.0,0.00010225,2]
[420632980,1776381043298,-199.98,0.00010225,2]
[420632981,1776381043308,-3429.5487776,0.00010267,2]
[420632982,1776381043318,-88257.72766066,0.00010267,2]
[420632983,1776381043330,-972.59568653,0.00010267,2]
[420632996,1776381046707,-571.82945458,0.00010267,2]
[420632997,1776381046724,-10638.90682346,0.00010267,2]
[420632998,1776381046819,-5452.50000408,0.00010267,2]
[420632999,1776381046835,-382.94399198,0.00010267,2]
[420633000,1776381046846,-338.89006486,0.00010267,2]
[420633001,1776381047158,-999.0,0.00010267,2]
[420633005,1776381179343,150.0,0.00015753,30]
[420633006,1776381333842,150.0,0.00012773,30]
[420633007,1776381334217,150.0,0.00013552,30]
[420633008,1776381334572,150.0,0.00014332,30]
[420633009,1776381334927,150.0,0.00015111,30]
[420633010,1776381335299,150.0,0.00015891,30]
[420633012,1776381411741,150.0,0.00012595,30]
[420633013,1776381454147,150.0,0.00011233,120]
[420633014,1776381501878,150.0,8.088e-05,2]
[420633016,1776381917832,150.0,7.718e-05,2]
[420633018,1776382232127,-150.0,8.338e-05,2]
[420633019,1776382232137,-549.0,8.425e-05,2]
[420633020,1776382232181,-932.692,8.425e-05,2]
[420633021,1776382232192,-162.12,8.425e-05,2]
[420633022,1776382232202,-193.30609115,8.425e-05,2]
[420633023,1776382232212,-193.30609113,8.513e-05,2]
[420633024,1776382232221,-1200.0,8.572e-05,2]
[420633025,1776382232230,-300.0,8.572e-05,2]
[420633026,1776382232239,-227.60480576,8.573e-05,2]
[420633027,1776382232249,-500.0,8.573e-05,2]
[420633028,1776382232258,-500.0,8.573e-05,2]
[420633029,1776382232267,-167.96045773,8.573e-05,2]
[420633030,1776382232277,-160.05196007,8.573e-05,2]
[420633031,1776382232286,-500.0,8.573e-05,2]
[420633032,1776382232295,-500.0,8.573e-05,2]
[420633033,1776382232304,-160.04579163,8.573e-05,2]
[420633034,1776382232314,-500.43587122,8.573e-05,2]
[420633035,1776382232323,-500.0,8.596e-05,2]
[420633036,1776382232332,-500.0,8.596e-05,2]
[420633037,1776382232342,-279.81400006,8.596e-05,2]
[420633038,1776382232352,-500.0,8.596e-05,2]
[420633039,1776382232362,-443.59194856,8.596e-05,2]
[420633040,1776382232374,-56.40805144,8.596e-05,2]
[420633041,1776382232383,-203.62443587,8.596e-05,2]
[420633042,1776382232395,-296.37556413,8.596e-05,2]
[420633043,1776382232406,-389.72628698,8.596e-05,2]
[420633044,1776382232418,-110.27371302,8.596e-05,2]
[420633045,1776382232427,-500.0,8.596e-05,2]
[420633046,1776382232437,-500.0,8.596e-05,2]
[420633047,1776382232446,-500.0,8.596e-05,2]
[420633048,1776382232457,-500.0,8.596e-05,2]
[420633049,1776382232466,-500.0,8.596e-05,2]
[420633050,1776382232476,-500.0,8.596e-05,2]
[420633051,1776382232486,-500.0,8.596e-05,2]
[420633052,1776382232496,-500.0,8.596e-05,2]
[420633053,1776382232508,-500.0,8.596e-05,2]
[420633055,1776382232517,-500.0,8.596e-05,2]
[420633057,1776382232526,-500.0,8.596e-05,2]
[420633059,1776382232536,-500.0,8.596e-05,2]
[420633061,1776382232545,-500.0,8.596e-05,2]
[420633063,1776382232555,-500.0,8.596e-05,2]
[420633065,1776382232564,-500.0,8.596e-05,2]
[420633066,1776382232574,-500.0,8.596e-05,2]
[420633067,1776382232584,-500.0,8.596e-05,2]
[420633069,1776382232594,-500.0,8.596e-05,2]
[420633072,1776382232603,-500.0,8.596e-05,2]
[420633074,1776382232612,-500.0,8.596e-05,2]
[420633075,1776382232623,-500.0,8.596e-05,2]
[420633076,1776382232632,-500.0,8.596e-05,2]
[420633077,1776382232641,-500.0,8.596e-05,2]
[420633078,1776382232651,-500.0,8.596e-05,2]
[420633079,1776382232660,-500.0,8.596e-05,2]
[420633080,1776382232670,-500.0,8.596e-05,2]
[420633081,1776382232680,-500.0,8.596e-05,2]
[420633082,1776382232691,-500.0,8.596e-05,2]
[420633083,1776382232701,-500.0,8.596e-05,2]
[420633084,1776382232710,-500.0,8.596e-05,2]
[420633085,1776382232720,-500.0,8.596e-05,2]
[420633086,1776382232729,-500.0,8.596e-05,2]
[420633087,1776382232739,-500.0,8.596e-05,2]
[420633088,1776382232749,-500.0,8.596e-05,2]
[420633089,1776382232759,-500.0,8.596e-05,2]
[420633090,1776382232770,-500.0,8.596e-05,2]
[420633091,1776382232780,-326.41678554,8.596e-05,2]
[420633092,1776382232790,-200.86681518,8.596e-05,2]
[420633093,1776382232813,-299.13318482,8.596e-05,2]
[420633094,1776382232823,-500.0,8.596e-05,2]
[420633095,1776382232833,-500.0,8.596e-05,2]
[420633096,1776382232844,-500.0,8.596e-05,2]
[420633097,1776382232854,-357.32066239,8.596e-05,2]
[420633098,1776382232863,-500.0,8.596e-05,2]
[420633099,1776382232874,-500.0,8.596e-05,2]
[420633100,1776382232884,-500.0,8.596e-05,2]